fUST/lending_fUST_20250627
["ID","MTS","AMOUNT","RATE_DAILY","PERIOD"]
[368003747,1750990245379,-665.58,0.00019726,2]
[368003748,1750990245389,-2063.54,0.00019726,2]
[368003749,1750990245398,-478.81,0.00019726,2]
[368003750,1750990245407,-460.0,0.00019726,2]
[368003751,1750990245417,-460.0,0.00019726,2]
[368003752,1750990245427,-437.5163436,0.00019726,2]
[368003753,1750990245437,-709.13,0.00019726,2]
[368003754,1750990245447,-460.0,0.00019726,2]
[368003755,1750990245458,-460.0,0.00019726,2]
[368003756,1750990245468,-460.0,0.00019726,2]
[368003757,1750990245478,-460.0,0.00019726,2]
[368003758,1750990245488,-497.95,0.00019726,2]
[368003759,1750990245498,-2766.63,0.00019726,2]
[368003760,1750990245508,-460.0,0.00019726,2]
[368003761,1750990245518,-460.0,0.00019726,2]
[368003762,1750990245528,-668.1,0.00019726,2]
[368003763,1750990245538,-460.0,0.00019726,2]
[368003764,1750990245548,-151.0,0.00019726,2]
[368003765,1750990245557,-500.26,0.00019726,2]
[368003766,1750990245567,-170.13314963,0.00019726,2]
[368003767,1750990245576,-460.0,0.00019726,2]
[368003768,1750990245586,-460.0,0.00019726,2]
[368003769,1750990245595,-1211.16,0.00019726,2]
[368003770,1750990245606,-624.51,0.00019726,2]
[368003771,1750990245615,-460.0,0.00019726,2]
[368003772,1750990245625,-460.0,0.00019726,2]
[368003773,1750990245635,-460.0,0.00019726,2]
[368003774,1750990245644,-460.0,0.00019726,2]
[368003775,1750990245654,-467.51081144,0.00019726,2]
[368003776,1750990245664,-465.47283519,0.00019726,2]
[368003777,1750990245674,-460.0,0.00019726,2]
[368003778,1750990245683,-1439.35,0.00019726,2]
[368003779,1750990245693,-151.0,0.00019726,2]
[368003780,1750990245702,-1623.76,0.00019726,2]
[368003781,1750990245713,-460.0,0.00019726,2]
[368003782,1750990245724,-460.0,0.00019726,2]
[368003783,1750990245734,-770.47,0.00019726,2]
[368003784,1750990245743,-460.0,0.00019726,2]
[368003785,1750990245752,-460.0,0.00019726,2]
[368003786,1750990245762,-460.0,0.00019726,2]
[368003787,1750990245772,-577.78,0.00019726,2]
[368003788,1750990245781,-851.92,0.00019726,2]
[368003789,1750990245791,-3159.43,0.00019726,2]
[368003790,1750990245800,-460.0,0.00019726,2]
[368003791,1750990245809,-571.76,0.00019726,2]
[368003792,1750990245819,-151.0,0.00019726,2]
[368003794,1750990245831,-460.0,0.00019726,2]
[368003795,1750990245843,-816.91,0.00019726,2]
[368003796,1750990245852,-151.0,0.00019726,2]
[368003797,1750990245862,-151.0,0.00019726,2]
[368003798,1750990245871,-181.56515,0.00019726,2]
[368003799,1750990245881,-460.0,0.00019726,2]
[368003800,1750990245890,-460.0,0.00019726,2]
[368003801,1750990245900,-181.56515,0.00019726,2]
[368003802,1750990245910,-429.06,0.00019726,2]
[368003803,1750990245920,-2249.21,0.00019726,2]
[368003804,1750990245929,-460.0,0.00019726,2]
[368003805,1750990245939,-527.59,0.00019726,2]
[368003806,1750990245949,-460.0,0.00019726,2]
[368003807,1750990245958,-609.62,0.00019726,2]
[368003808,1750990245968,-460.0,0.00019726,2]
[368003809,1750990245977,-1901.38,0.00019726,2]
[368003810,1750990245991,-460.0,0.00019726,2]
[368003811,1750990246000,-470.08542819,0.00019726,2]
[368003812,1750990246011,-804.08,0.00019726,2]
[368003813,1750990246020,-460.0,0.00019726,2]
[368003814,1750990246030,-351.320462,0.00019726,2]
[368003816,1750990246039,-460.0,0.00019726,2]
[368003817,1750990246048,-351.320462,0.00019726,2]
[368003818,1750990246059,-1406.946589,0.00019726,2]
[368003819,1750990246068,-460.0,0.00019726,2]
[368003820,1750990246078,-1406.946589,0.00019726,2]
[368003821,1750990246088,-2275.33,0.00019726,2]
[368003822,1750990246097,-460.0,0.00019726,2]
[368003823,1750990246106,-2499.19,0.00019726,2]
[368003824,1750990246116,-460.0,0.00019726,2]
[368003825,1750990246126,-460.0,0.00019726,2]
[368003826,1750990246136,-988.74,0.00019726,2]
[368003827,1750990246145,-460.0,0.00019726,2]
[368003828,1750990246155,-460.0,0.00019726,2]
[368003829,1750990246164,-831.38,0.00019726,2]
[368003830,1750990246173,-460.0,0.00019726,2]
[368003831,1750990246183,-717.72141322,0.00019763,2]
[368003833,1750990246192,-931.11,0.00019804,2]
[368003835,1750990246201,-931.11,0.00019804,2]
[368003837,1750990246211,-500.0,0.00019841,2]
[368003839,1750990246221,-931.11,0.00019861,2]
[368003841,1750990246231,-931.11,0.00019861,2]
[368003843,1750990246240,-931.11,0.00019899,2]
[368003845,1750990246250,-931.11,0.00019899,2]
[368003847,1750990246260,-931.11,0.00019899,2]
[368003849,1750990246269,-931.11,0.00019899,2]
[368003851,1750990246278,-931.23618838,0.00019899,2]
[368003853,1750990246288,-6544.14965236,0.000199,2]
[368003855,1750990246298,-151.0,0.00019979,2]
[368003857,1750990246307,-151.0,0.00019979,2]
[368003859,1750990246316,-151.0,0.00019979,2]
[368003862,1750990246327,-151.0,0.00019979,2]
[368003864,1750990246336,-151.0,0.00019979,2]
[368003866,1750990246345,-151.0,0.00019979,2]
[368003868,1750990246355,-151.0,0.00019979,2]
[368003870,1750990246364,-154.138033,0.00019979,2]
[368003872,1750990246376,-151.0,0.00019979,2]
[368003874,1750990246385,-151.0,0.00019979,2]
[368003876,1750990246395,-151.0,0.00019979,2]
[368003878,1750990246404,-151.0,0.00019979,2]
[368003880,1750990246414,-151.0,0.00019979,2]
[368003882,1750990246423,-151.0,0.00019979,2]
[368003884,1750990246432,-151.0,0.00019979,2]
[368003886,1750990246442,-151.546194,0.00019979,2]
[368003888,1750990246451,-151.0,0.00019979,2]
[368003889,1750990246461,-460.0,0.00019983,2]
[368003891,1750990246471,-460.0,0.00019983,2]
[368003893,1750990246481,-460.0,0.00019983,2]
[368003895,1750990246491,-487.91,0.00019983,2]
[368003897,1750990246500,-460.0,0.00019983,2]
[368003898,1750990246510,-460.0,0.00019983,2]
[368003900,1750990246520,-460.0,0.00019983,2]
[368003902,1750990246529,-460.0,0.00019983,2]
[368003904,1750990246538,-474.53,0.00019983,2]
[368003906,1750990246547,-100000.0,0.0001999,2]
[368003907,1750990246557,-460.0,0.00019999,2]
[368003908,1750990246567,-460.0,0.00019999,2]
[368003909,1750990246577,-460.0,0.00019999,2]
[368003910,1750990246586,-569.23,0.00019999,2]
[368003911,1750990246596,-543.97,0.00019999,2]
[368003912,1750990246605,-1476.7,0.00019999,2]
[368003913,1750990246615,-151.0,0.00019999,2]
[368003914,1750990246628,-1539.19,0.00019999,2]
[368003915,1750990246637,-153.012771,0.00019999,2]
[368003916,1750990246647,-201.459262,0.00019999,2]
[368003917,1750990246656,-4068.66,0.00019999,2]
[368003918,1750990246666,-201.459262,0.00019999,2]
[368003919,1750990246676,-460.0,0.00019999,2]
[368003920,1750990246685,-1056.28,0.00019999,2]
[368003921,1750990246695,-1359.78,0.00019999,2]
[368003922,1750990246705,-525.87,0.00019999,2]
[368003923,1750990246715,-460.0,0.00019999,2]
[368003924,1750990246725,-151.0,0.00019999,2]
[368003925,1750990246735,-174.797159,0.00019999,2]
[368003926,1750990246744,-151.0,0.00019999,2]
[368003927,1750990246754,-251.679561,0.00019999,2]
[368003928,1750990246763,-151.0,0.00019999,2]
[368003929,1750990246773,-151.0,0.00019999,2]
[368003930,1750990246782,-460.0,0.0002,2]
[368003931,1750990246792,-460.0,0.0002,2]
[368003932,1750990246801,-460.0,0.0002,2]
[368003933,1750990246810,-460.0,0.0002,2]
[368003934,1750990246820,-460.0,0.0002,2]
[368003935,1750990246830,-460.0,0.0002,2]
[368003936,1750990246839,-460.0,0.0002,2]
[368003937,1750990246849,-460.0,0.0002,2]
[368003938,1750990246857,-460.0,0.0002,2]
[368003939,1750990246869,-460.0,0.0002,2]
[368003940,1750990246878,-676.69,0.0002,2]
[368003941,1750990246887,-619.16,0.0002,2]
[368003942,1750990246896,-4291.0,0.0002,2]
[368003943,1750990246905,-460.0,0.0002,2]
[368003944,1750990246914,-460.0,0.0002,2]
[368003945,1750990246924,-505.43,0.0002,2]
[368003946,1750990246932,-460.0,0.0002,2]
[368003947,1750990246942,-496.88,0.0002,2]
[368003948,1750990246951,-460.0,0.0002,2]
[368003949,1750990246961,-701.54,0.0002,2]
[368003950,1750990246970,-460.0,0.0002,2]
[368003951,1750990246979,-465.66765915,0.0002,2]
[368003952,1750990246991,-460.0,0.0002,2]
[368003953,1750990247000,-460.0,0.0002,2]
[368003954,1750990247010,-460.0,0.0002,2]
[368003955,1750990247019,-460.0,0.0002,2]
[368003956,1750990247028,-460.0,0.0002,2]
[368003957,1750990247037,-598.63,0.0002,2]
[368003958,1750990247047,-460.0,0.0002,2]
[368003959,1750990247056,-460.0,0.0002,2]
[368003960,1750990247065,-460.0,0.0002,2]
[368003961,1750990247074,-460.0,0.0002,2]
[368003962,1750990247083,-460.0,0.0002,2]
[368003963,1750990247093,-460.0,0.0002,2]
[368003964,1750990247102,-460.0,0.0002,2]
[368003965,1750990247111,-460.0,0.0002,2]
[368003966,1750990247121,-460.0,0.0002,2]
[368003967,1750990247141,-460.0,0.0002,2]
[368003968,1750990247151,-460.0,0.0002,2]
[368003969,1750990247160,-476.96,0.0002,2]
[368003970,1750990247170,-608.61692349,0.0002,2]
[368003971,1750990247179,-648.92,0.0002,2]
[368003972,1750990247188,-460.0,0.0002,2]
[368003973,1750990247198,-208.4586394,0.0002,2]
[368003974,1750990247207,-460.0,0.0002,2]
[368003975,1750990247216,-855.66,0.0002,2]
[368003976,1750990247225,-460.0,0.0002,2]
[368003977,1750990247234,-460.0,0.0002,2]
[368003978,1750990247244,-460.0,0.0002,2]
[368003979,1750990247253,-531.49124185,0.0002,2]
[368003980,1750990247263,-478.7304356,0.0002,2]
[368003981,1750990247272,-460.0,0.0002,2]
[368003982,1750990247282,-473.7,0.0002,2]
[368003983,1750990247293,-833.92,0.0002,2]
[368003984,1750990247301,-468.86,0.0002,2]
[368003985,1750990247310,-1937.95,0.0002,2]
[368003986,1750990247319,-460.0,0.0002,2]
[368003987,1750990247329,-510.45,0.0002,2]
[368003988,1750990247338,-666.48,0.0002,2]
[368003989,1750990247347,-4160.84,0.0002,2]
[368003990,1750990247356,-460.0,0.0002,2]
[368003991,1750990247365,-585.93,0.0002,2]
[368003992,1750990247376,-460.0,0.0002,2]
[368003993,1750990247386,-810.26,0.0002,2]
[368003994,1750990247395,-465.47523577,0.0002,2]
[368003995,1750990247404,-664.72,0.0002,2]
[368003996,1750990247413,-709.05,0.0002,2]
[368003997,1750990247423,-1068.07,0.0002,2]
[368003998,1750990247431,-690.78,0.0002,2]
[368003999,1750990247474,-460.0,0.0002,2]
[368004000,1750990247484,-460.0,0.0002,2]
[368004001,1750990247495,-460.0,0.0002,2]
[368004002,1750990247504,-879.35,0.0002,2]
[368004003,1750990247514,-665.58,0.0002,2]
[368004004,1750990247523,-2063.54,0.0002,2]
[368004005,1750990247532,-478.81,0.0002,2]
[368004006,1750990247541,-460.0,0.0002,2]
[368004007,1750990247550,-460.0,0.0002,2]
[368004008,1750990247559,-709.13,0.0002,2]
[368004009,1750990247568,-460.0,0.0002,2]
[368004010,1750990247577,-460.0,0.0002,2]
[368004011,1750990247586,-460.0,0.0002,2]
[368004012,1750990247595,-497.95,0.0002,2]
[368004013,1750990247604,-2766.63,0.0002,2]
[368004014,1750990247613,-460.0,0.0002,2]
[368004015,1750990247623,-668.1,0.0002,2]
[368004016,1750990247632,-460.0,0.0002,2]
[368004017,1750990247641,-500.26,0.0002,2]
[368004018,1750990247650,-460.0,0.0002,2]
[368004019,1750990247659,-242.85847513,0.0002,2]
[368004020,1750990247668,-1211.16,0.0002,2]
[368004021,1750990247678,-624.51,0.0002,2]
[368004022,1750990247687,-460.0,0.0002,2]
[368004023,1750990247696,-460.0,0.0002,2]
[368004024,1750990247706,-460.0,0.0002,2]
[368004025,1750990247716,-460.0,0.0002,2]
[368004026,1750990247725,-1439.35,0.0002,2]
[368004027,1750990247735,-1623.76,0.0002,2]
[368004028,1750990247744,-460.0,0.0002,2]
[368004029,1750990247754,-770.47,0.0002,2]
[368004030,1750990247763,-460.0,0.0002,2]
[368004031,1750990247773,-335.77418389,0.0002,2]
[368004032,1750990247783,-462.88936565,0.0002,2]
[368004033,1750990247794,-577.78,0.0002,2]
[368004034,1750990247804,-851.92,0.0002,2]
[368004035,1750990247815,-3159.43,0.0002,2]
[368004036,1750990247826,-460.0,0.0002,2]
[368004037,1750990247838,-571.76,0.0002,2]
[368004038,1750990247849,-460.0,0.0002,2]
[368004039,1750990247859,-816.91,0.0002,2]
[368004040,1750990247871,-290.3,0.0002,2]
[368004041,1750990247883,-460.0,0.0002,2]
[368004042,1750990247895,-2249.21,0.0002,2]
[368004043,1750990247905,-498.87260499,0.0002,2]
[368004044,1750990247915,-527.59,0.0002,2]
[368004045,1750990247925,-460.0,0.0002,2]
[368004046,1750990247935,-609.62,0.0002,2]
[368004047,1750990247944,-460.0,0.0002,2]
[368004048,1750990247954,-1901.38,0.0002,2]
[368004049,1750990247964,-460.0,0.0002,2]
[368004050,1750990247973,-804.08,0.0002,2]
[368004051,1750990247983,-460.0,0.0002,2]
[368004052,1750990247995,-480.64822948,0.0002,2]
[368004053,1750990248005,-460.0,0.0002,2]
[368004054,1750990248015,-2275.33,0.0002,2]
[368004055,1750990248024,-460.0,0.0002,2]
[368004056,1750990248035,-2499.19,0.0002,2]
[368004057,1750990248045,-460.0,0.0002,2]
[368004058,1750990248054,-460.0,0.0002,2]
[368004059,1750990248065,-988.74,0.0002,2]
[368004060,1750990248074,-460.0,0.0002,2]
[368004061,1750990248085,-460.0,0.0002,2]
[368004062,1750990248094,-831.38,0.0002,2]
[368004063,1750990248103,-460.0,0.0002,2]
[368004064,1750990248113,-354.0443719,0.0002003,2]
[368004065,1750990248123,-314.74807614,0.0002003,2]
[368004066,1750990248132,-501.85873323,0.0002003,2]
[368004067,1750990248142,-500.89052318,0.0002003,2]
[368004068,1750990248151,-504.27943735,0.0002003,2]
[368004069,1750990248161,-500.0,0.0002003,2]
[368004070,1750990248171,-500.0,0.0002003,2]
[368004071,1750990248180,-6544.14965212,0.00020107,2]
[368004072,1750990248190,-154.393851,0.00020107,2]
[368004073,1750990248200,-151.502924,0.00020107,2]
[368004074,1750990248211,-151.0,0.00020107,2]
[368004075,1750990248224,-181.56515,0.00020107,2]
[368004076,1750990248233,-181.56515,0.00020107,2]
[368004077,1750990248243,-351.320462,0.00020107,2]
[368004078,1750990248251,-351.320462,0.00020107,2]
[368004079,1750990248260,-1406.946589,0.00020107,2]
[368004080,1750990248270,-1406.946589,0.00020107,2]
[368004081,1750990248280,-1113.89170431,0.0002013,2]
[368004082,1750990248289,-717.72141322,0.00020174,2]
[368004083,1750990248298,-168.0,0.00020223,2]
[368004084,1750990248307,-460.0,0.00020257,2]
[368004085,1750990248317,-460.0,0.00020257,2]
[368004086,1750990248326,-460.0,0.00020257,2]
[368004087,1750990248335,-487.91,0.00020257,2]
[368004088,1750990248344,-577.9567405,0.00020257,2]
[368004089,1750990248354,-460.0,0.00020257,2]
[368004090,1750990248363,-460.0,0.00020257,2]
[368004091,1750990248374,-460.0,0.00020257,2]
[368004092,1750990248383,-474.53,0.00020257,2]
[368004093,1750990248392,-168.0,0.00020262,2]
[368004094,1750990248402,-219.82047102,0.00020268,2]
[368004095,1750990248411,-151.0,0.00020272,2]
[368004096,1750990248420,-151.0,0.00020272,2]
[368004097,1750990248429,-460.0,0.00020273,2]
[368004098,1750990248439,-460.0,0.00020273,2]
[368004099,1750990248448,-460.0,0.00020273,2]
[368004100,1750990248458,-460.0,0.00020273,2]
[368004101,1750990248467,-460.0,0.00020273,2]
[368004102,1750990248477,-460.0,0.00020273,2]
[368004103,1750990248486,-460.0,0.00020273,2]
[368004104,1750990248495,-460.0,0.00020273,2]
[368004105,1750990248504,-460.0,0.00020273,2]
[368004106,1750990248514,-543.97492755,0.00020273,2]
[368004107,1750990248523,-460.0,0.00020273,2]
[368004108,1750990248532,-676.69,0.00020273,2]
[368004109,1750990248541,-619.16,0.00020273,2]
[368004110,1750990248550,-151.0,0.00020273,2]
[368004111,1750990248559,-460.0,0.00020273,2]
[368004112,1750990248570,-151.0,0.00020273,2]
[368004113,1750990248579,-151.0,0.00020273,2]
[368004114,1750990248589,-151.0,0.00020273,2]
[368004115,1750990248598,-460.0,0.00020273,2]
[368004116,1750990248608,-505.43,0.00020273,2]
[368004117,1750990248617,-151.0,0.00020273,2]
[368004118,1750990248626,-251.147989,0.00020273,2]
[368004119,1750990248635,-251.147989,0.00020273,2]
[368004120,1750990248644,-460.0,0.00020273,2]
[368004121,1750990248654,-496.88,0.00020273,2]
[368004122,1750990248663,-460.0,0.00020273,2]
[368004123,1750990248673,-701.54,0.00020273,2]
[368004124,1750990248683,-460.0,0.00020273,2]
[368004125,1750990248694,-460.0,0.00020273,2]
[368004126,1750990248703,-460.0,0.00020273,2]
[368004127,1750990248713,-460.0,0.00020273,2]
[368004128,1750990248722,-460.0,0.00020273,2]
[368004129,1750990248731,-460.0,0.00020273,2]
[368004130,1750990248740,-598.63,0.00020273,2]
[368004131,1750990248750,-460.0,0.00020273,2]
[368004132,1750990248759,-210.66622379,0.00020273,2]
[368004133,1750990248769,-460.0,0.00020273,2]
[368004134,1750990248778,-460.0,0.00020273,2]
[368004135,1750990248788,-460.0,0.00020273,2]
[368004136,1750990248797,-460.0,0.00020273,2]
[368004137,1750990248806,-151.0,0.00020273,2]
[368004138,1750990248816,-460.0,0.00020273,2]
[368004139,1750990248826,-151.0,0.00020273,2]
[368004140,1750990248836,-151.0,0.00020273,2]
[368004141,1750990248845,-460.0,0.00020273,2]
[368004142,1750990248855,-151.0,0.00020273,2]
[368004143,1750990248865,-151.0,0.00020273,2]
[368004144,1750990248875,-460.0,0.00020273,2]
[368004145,1750990248884,-460.0,0.00020273,2]
[368004146,1750990248894,-460.0,0.00020273,2]
[368004147,1750990248903,-151.0,0.00020273,2]
[368004148,1750990248913,-476.96,0.00020273,2]
[368004149,1750990248923,-648.92,0.00020273,2]
[368004150,1750990248933,-151.0,0.00020273,2]
[368004151,1750990248942,-419.03673368,0.00020273,2]
[368004152,1750990248952,-855.66,0.00020273,2]
[368004153,1750990248961,-460.0,0.00020273,2]
[368004154,1750990248971,-460.0,0.00020273,2]
[368004155,1750990248981,-215.19,0.00020273,2]
[368004156,1750990248994,-569.23,0.00020273,2]
[368004157,1750990249004,-151.0,0.00020273,2]
[368004158,1750990249013,-151.0,0.00020273,2]
[368004159,1750990249023,-543.97,0.00020273,2]
[368004160,1750990249032,-151.0,0.00020273,2]
[368004161,1750990249041,-155.334899,0.00020273,2]
[368004162,1750990249051,-151.0,0.00020273,2]
[368004163,1750990249061,-460.0,0.00020273,2]
[368004164,1750990249071,-151.0,0.00020273,2]
[368004165,1750990249081,-833.92,0.00020273,2]
[368004166,1750990249091,-468.86,0.00020273,2]
[368004167,1750990249101,-1937.95,0.00020273,2]
[368004168,1750990249112,-460.0,0.00020273,2]
[368004169,1750990249122,-151.0,0.00020273,2]
[368004170,1750990249138,-666.48,0.00020273,2]
[368004171,1750990249148,-510.45,0.00020273,2]
[368004172,1750990249158,-4160.84,0.00020273,2]
[368004173,1750990249168,-460.0,0.00020273,2]
[368004174,1750990249178,-585.93,0.00020273,2]
[368004175,1750990249188,-460.0,0.00020273,2]
[368004176,1750990249199,-810.26,0.00020273,2]
[368004177,1750990249208,-1476.7,0.00020273,2]
[368004178,1750990249218,-664.72,0.00020273,2]
[368004179,1750990249228,-709.05,0.00020273,2]
[368004180,1750990249238,-1068.07,0.00020273,2]
[368004181,1750990249248,-690.78,0.00020273,2]
[368004182,1750990249258,-460.0,0.00020273,2]
[368004183,1750990249268,-460.0,0.00020273,2]
[368004184,1750990249278,-460.0,0.00020273,2]
[368004185,1750990249288,-879.35,0.00020273,2]
[368004186,1750990249297,-665.58,0.00020273,2]
[368004187,1750990249307,-2063.54,0.00020273,2]
[368004188,1750990249317,-478.81,0.00020273,2]
[368004189,1750990249326,-460.0,0.00020273,2]
[368004190,1750990249336,-460.0,0.00020273,2]
[368004191,1750990249345,-1539.19,0.00020273,2]
[368004192,1750990249355,-709.13,0.00020273,2]
[368004193,1750990249365,-460.0,0.00020273,2]
[368004194,1750990249376,-276.14932496,0.00020273,2]
[368004195,1750990249386,-460.0,0.00020273,2]
[368004196,1750990249396,-497.95,0.00020273,2]
[368004197,1750990249405,-2766.63,0.00020273,2]
[368004198,1750990249415,-460.0,0.00020273,2]
[368004199,1750990249425,-668.1,0.00020273,2]
[368004200,1750990249434,-201.459262,0.00020273,2]
[368004201,1750990249444,-4068.66,0.00020273,2]
[368004202,1750990249454,-201.459262,0.00020273,2]
[368004203,1750990249464,-460.0,0.00020273,2]
[368004204,1750990249474,-460.0,0.00020273,2]
[368004205,1750990249483,-500.26,0.00020273,2]
[368004206,1750990249493,-460.0,0.00020273,2]
[368004207,1750990249502,-1211.16,0.00020273,2]
[368004208,1750990249512,-624.51,0.00020273,2]
[368004209,1750990249522,-460.0,0.00020273,2]
[368004210,1750990249532,-315.26643814,0.00020273,2]
[368004211,1750990249542,-460.0,0.00020273,2]
[368004212,1750990249552,-460.0,0.00020273,2]
[368004213,1750990249562,-1056.28,0.00020273,2]
[368004214,1750990249572,-1439.35,0.00020273,2]
[368004215,1750990249581,-460.0,0.00020273,2]
[368004216,1750990249592,-1623.76,0.00020273,2]
[368004217,1750990249601,-770.47,0.00020273,2]
[368004218,1750990249611,-460.0,0.00020273,2]
[368004219,1750990249622,-1359.78,0.00020273,2]
[368004220,1750990249632,-525.87,0.00020273,2]
[368004221,1750990249641,-577.78,0.00020273,2]
[368004222,1750990249651,-851.92,0.00020273,2]
[368004223,1750990249661,-3159.43,0.00020273,2]
[368004224,1750990249671,-460.0,0.00020273,2]
[368004225,1750990249681,-571.76,0.00020273,2]
[368004226,1750990249691,-460.0,0.00020273,2]
[368004227,1750990249701,-816.91,0.00020273,2]
[368004228,1750990249710,-460.0,0.00020273,2]
[368004229,1750990249720,-460.0,0.00020273,2]
[368004230,1750990249730,-2249.21,0.00020273,2]
[368004231,1750990249740,-151.0,0.00020273,2]
[368004232,1750990249750,-151.0,0.00020273,2]
[368004233,1750990249761,-527.59,0.00020273,2]
[368004234,1750990249771,-609.62,0.00020273,2]
[368004235,1750990249781,-460.0,0.00020273,2]
[368004236,1750990249793,-460.0,0.00020273,2]
[368004237,1750990249804,-1901.38,0.00020273,2]
[368004238,1750990249813,-460.0,0.00020273,2]
[368004239,1750990249824,-804.08,0.00020273,2]
[368004240,1750990249834,-460.0,0.00020273,2]
[368004241,1750990249844,-460.0,0.00020273,2]
[368004242,1750990249854,-2275.33,0.00020273,2]
[368004243,1750990249864,-460.0,0.00020273,2]
[368004244,1750990249874,-2499.19,0.00020273,2]
[368004245,1750990249884,-460.0,0.00020273,2]
[368004246,1750990249893,-460.0,0.00020273,2]
[368004247,1750990249903,-988.74,0.00020273,2]
[368004248,1750990249912,-151.0,0.00020273,2]
[368004249,1750990249921,-460.0,0.00020273,2]
[368004250,1750990249931,-178.57979428,0.00020273,2]
[368004251,1750990249940,-151.0,0.00020273,2]
[368004252,1750990249950,-831.38,0.00020273,2]
[368004253,1750990249959,-460.0,0.00020273,2]
[368004254,1750990249968,-847.04181546,0.00020314,3]
[368004255,1750990249978,-6544.14965212,0.00020314,3]
[368004256,1750990249989,-151.0,0.00020314,2]
[368004257,1750990250001,-151.0,0.00020314,2]
[368004258,1750990250014,-151.0,0.00020314,2]
[368004259,1750990250023,-151.0,0.00020314,2]
[368004260,1750990250034,-1000.0,0.00020389,2]
[368004261,1750990250045,-151.0,0.000204,3]
[368004262,1750990250055,-6544.14965212,0.00020521,3]
[368004263,1750990250065,-213.75309343,0.00020521,3]
[368004264,1750990250074,-460.0,0.00020531,2]
[368004265,1750990250084,-460.0,0.00020531,2]
[368004266,1750990250095,-460.0,0.00020531,2]
[368004267,1750990250104,-487.91,0.00020531,2]
[368004268,1750990250114,-460.0,0.00020531,2]
[368004269,1750990250124,-460.0,0.00020531,2]
[368004270,1750990250135,-474.53,0.00020531,2]
[368004271,1750990250145,-460.0,0.00020547,2]
[368004272,1750990250154,-357.31212365,0.00020547,2]
[368004273,1750990250164,-460.0,0.00020547,2]
[368004274,1750990250174,-460.0,0.00020547,2]
[368004275,1750990250184,-460.0,0.00020547,2]
[368004276,1750990250194,-460.0,0.00020547,2]
[368004277,1750990250203,-232.5437507,0.00020547,2]
[368004278,1750990250213,-460.0,0.00020547,2]
[368004279,1750990250223,-151.0,0.00020547,2]
[368004280,1750990250233,-676.69,0.00020547,2]
[368004281,1750990250243,-619.16,0.00020547,2]
[368004282,1750990250253,-460.0,0.00020547,2]
[368004283,1750990250263,-460.0,0.00020547,2]
[368004284,1750990250272,-505.43,0.00020547,2]
[368004285,1750990250281,-460.0,0.00020547,2]